fUSD/lending_fUSD_20250113
["ID","MTS","AMOUNT","RATE_DAILY","PERIOD"]
[348761542,1736775038861,-500.0,0.00010268,2]
[348761543,1736775038871,-500.0,0.00010268,2]
[348761544,1736775038880,-500.0,0.00010268,2]
[348761545,1736775038889,-500.0,0.00010268,2]
[348761546,1736775038898,-500.0,0.00010268,2]
[348761547,1736775038908,-500.0,0.00010268,2]
[348761548,1736775038918,-500.0,0.00010268,2]
[348761549,1736775038927,-500.0,0.00010268,2]
[348761550,1736775038937,-500.0,0.00010268,2]
[348761551,1736775038946,-500.0,0.00010268,2]
[348761552,1736775038955,-500.0,0.00010268,2]
[348761553,1736775038966,-500.0,0.00010268,2]
[348761554,1736775038975,-500.0,0.00010268,2]
[348761555,1736775038985,-500.0,0.00010268,2]
[348761556,1736775038995,-500.0,0.00010268,2]
[348761557,1736775039006,-500.0,0.00010268,2]
[348761558,1736775039016,-574.3,0.00010268,2]
[348761559,1736775039026,-500.0,0.00010268,2]
[348761560,1736775039036,-641.51,0.00010268,2]
[348761561,1736775039045,-548.79,0.00010268,2]
[348761562,1736775039055,-500.0,0.00010268,2]
[348761563,1736775039064,-500.0,0.00010268,2]
[348761564,1736775039074,-470.27521708,0.00010268,2]
[348761565,1736775039083,-500.0,0.00010268,2]
[348761566,1736775039093,-500.0,0.00010268,2]
[348761567,1736775039102,-561.58,0.00010268,2]
[348761568,1736775039111,-500.0,0.00010268,2]
[348761569,1736775039121,-625.72,0.00010268,2]
[348761570,1736775039130,-500.0,0.00010268,2]
[348761571,1736775039139,-500.0,0.00010268,2]
[348761573,1736775039149,-500.0,0.00010268,2]
[348761574,1736775039159,-500.0,0.00010268,2]
[348761575,1736775039168,-500.0,0.00010268,2]
[348761576,1736775039178,-500.0,0.00010268,2]
[348761577,1736775039187,-500.0,0.00010268,2]
[348761578,1736775039197,-522.53,0.00010268,2]
[348761579,1736775039206,-500.0,0.00010268,2]
[348761580,1736775039216,-500.0,0.00010268,2]
[348761581,1736775039225,-617.79,0.00010268,2]
[348761582,1736775039235,-500.0,0.00010268,2]
[348761583,1736775039244,-500.0,0.00010268,2]
[348761584,1736775039253,-500.0,0.00010268,2]
[348761585,1736775039263,-500.0,0.00010268,2]
[348761586,1736775039272,-500.0,0.00010268,2]
[348761587,1736775039281,-500.0,0.00010268,2]
[348761588,1736775039291,-500.0,0.00010268,2]
[348761589,1736775039300,-535.77,0.00010268,2]
[348761590,1736775039309,-500.0,0.00010268,2]
[348761591,1736775039319,-500.0,0.00010268,2]
[348761592,1736775039328,-500.0,0.00010268,2]
[348761593,1736775039338,-500.0,0.00010268,2]
[348761594,1736775039347,-500.0,0.00010268,2]
[348761595,1736775039357,-686.43,0.00010268,2]
[348761610,1736775039563,-501.45,0.00010268,2]
[348761612,1736775039573,-500.0,0.00010268,2]
[348761614,1736775039583,-514.11,0.00010268,2]
[348761616,1736775039596,-500.0,0.00010268,2]
[348761618,1736775039606,-500.0,0.00010268,2]
[348761620,1736775039615,-500.0,0.00010268,2]
[348761622,1736775039624,-580.94,0.00010268,2]
[348761624,1736775039634,-500.0,0.00010268,2]
[348761625,1736775039643,-500.0,0.00010268,2]
[348761626,1736775039652,-500.0,0.00010268,2]
[348761627,1736775039661,-500.0,0.00010268,2]
[348761628,1736775039671,-500.0,0.00010268,2]
[348761629,1736775039682,-500.0,0.00010268,2]
[348761630,1736775039692,-500.0,0.00010268,2]
[348761631,1736775039701,-500.0,0.00010268,2]
[348761632,1736775039711,-500.0,0.00010268,2]
[348761633,1736775039720,-500.0,0.00010268,2]
[348761634,1736775039732,-500.0,0.00010268,2]
[348761635,1736775039744,-606.51,0.00010268,2]
[348761636,1736775039754,-500.0,0.00010268,2]
[348761637,1736775039763,-565.25,0.00010268,2]
[348761638,1736775039773,-500.0,0.00010268,2]
[348761639,1736775039783,-536.63,0.00010268,2]
[348761640,1736775039792,-500.0,0.00010268,2]
[348761641,1736775039802,-500.0,0.00010268,2]
[348761642,1736775039811,-2084.23,0.00010268,2]
[348761643,1736775039820,-500.0,0.00010268,2]
[348761644,1736775039831,-500.0,0.00010268,2]
[348761645,1736775039840,-500.0,0.00010268,2]
[348761646,1736775039849,-500.0,0.00010268,2]
[348761647,1736775039859,-1894.88,0.00010268,2]
[348761648,1736775039868,-597.39,0.00010268,2]
[348761649,1736775039878,-625.92,0.00010268,2]
[348761650,1736775039887,-500.0,0.00010268,2]
[348761651,1736775039897,-510.29,0.00010268,2]
[348761652,1736775039906,-500.0,0.00010268,2]
[348761653,1736775039915,-500.0,0.00010268,2]
[348761654,1736775039925,-329.36086463,0.00010268,2]
[348761655,1736775039936,-500.0,0.00010268,2]
[348761656,1736775039946,-500.0,0.00010268,2]
[348761657,1736775039956,-500.0,0.00010268,2]
[348761658,1736775039965,-500.0,0.00010268,2]
[348761659,1736775039975,-500.0,0.00010268,2]
[348761660,1736775039984,-500.0,0.00010268,2]
[348761661,1736775039993,-500.0,0.00010268,2]
[348761662,1736775040003,-500.0,0.00010268,2]
[348761663,1736775040012,-500.0,0.00010268,2]
[348761664,1736775040022,-500.0,0.00010268,2]
[348761665,1736775040031,-500.0,0.00010268,2]
[348761666,1736775040040,-500.0,0.00010268,2]
[348761667,1736775040050,-500.0,0.00010268,2]
[348761668,1736775040059,-500.0,0.00010268,2]
[348761669,1736775040068,-500.0,0.00010268,2]
[348761670,1736775040078,-500.0,0.00010268,2]
[348761671,1736775040087,-500.0,0.00010268,2]
[348761672,1736775040097,-500.0,0.00010268,2]
[348761673,1736775040106,-859.77,0.00010268,2]
[348761674,1736775040115,-227.63264715,0.00010268,2]
[348761675,1736775040124,-500.0,0.00010268,2]
[348761676,1736775040133,-500.0,0.00010268,2]
[348761677,1736775040143,-500.0,0.00010268,2]
[348761678,1736775040152,-500.0,0.00010268,2]
[348761679,1736775040162,-503.16128689,0.00010268,2]
[348761680,1736775040171,-500.0,0.00010268,2]
[348761681,1736775040182,-500.0,0.00010268,2]
[348761682,1736775040191,-500.0,0.00010268,2]
[348761683,1736775040200,-500.0,0.00010268,2]
[348761684,1736775040210,-500.0,0.00010268,2]
[348761685,1736775040219,-500.0,0.00010268,2]
[348761686,1736775040228,-500.0,0.00010268,2]
[348761687,1736775040237,-684.69,0.00010268,2]
[348761688,1736775040247,-500.0,0.00010268,2]
[348761689,1736775040256,-500.0,0.00010268,2]
[348761690,1736775040265,-500.0,0.00010268,2]
[348761691,1736775040275,-500.0,0.00010268,2]
[348761692,1736775040285,-628.52215289,0.00010268,2]
[348761693,1736775040294,-237.70089888,0.00010268,2]
[348761694,1736775040304,-500.0,0.00010268,2]
[348761695,1736775040313,-500.0,0.00010268,2]
[348761696,1736775040322,-500.0,0.00010268,2]
[348761697,1736775040332,-500.0,0.00010268,2]
[348761698,1736775040342,-500.0,0.00010268,2]
[348761699,1736775040351,-500.0,0.00010268,2]
[348761700,1736775040360,-500.0,0.00010268,2]
[348761701,1736775040369,-217.66783437,0.00010268,2]
[348761702,1736775040379,-500.0,0.00010268,2]
[348761703,1736775040388,-500.0,0.00010268,2]
[348761704,1736775040397,-500.0,0.00010268,2]
[348761705,1736775040406,-500.37,0.00010269,2]
[348761706,1736775040415,-500.0,0.00010269,2]
[348761707,1736775040424,-500.0,0.00010269,2]
[348761708,1736775040436,-500.0,0.00010269,2]
[348761709,1736775040445,-293.72652039,0.00010269,2]
[348761710,1736775040454,-343.57,0.00010269,2]
[348761711,1736775040464,-500.0,0.00010269,2]
[348761712,1736775040473,-500.0,0.00010269,2]
[348761713,1736775040483,-500.0,0.00010269,2]
[348761714,1736775040492,-500.0,0.00010269,2]
[348761715,1736775040502,-500.0,0.00010269,2]
[348761716,1736775040512,-572.68,0.00010269,2]
[348761717,1736775040521,-573.87,0.00010269,2]
[348761718,1736775040531,-500.0,0.00010269,2]
[348761719,1736775040540,-500.0,0.00010269,2]
[348761720,1736775040551,-504.08,0.00010269,2]
[348761721,1736775040560,-348.06,0.00010269,2]
[348761722,1736775040570,-500.0,0.00010269,2]
[348761723,1736775040580,-606.94,0.00010269,2]
[348761724,1736775040589,-500.0,0.00010269,2]
[348761725,1736775040599,-500.0,0.00010269,2]
[348761726,1736775040608,-500.0,0.00010269,2]
[348761727,1736775040618,-500.0,0.00010269,2]
[348761728,1736775040628,-500.0,0.00010269,2]
[348761729,1736775040637,-500.0,0.00010269,2]
[348761730,1736775040646,-500.0,0.00010269,2]
[348761731,1736775040655,-500.0,0.00010269,2]
[348761732,1736775040665,-500.0,0.00010269,2]
[348761733,1736775040675,-620.82,0.00010269,2]
[348761734,1736775040687,-536.67,0.00010269,2]
[348761735,1736775040697,-449.65175965,0.00010269,2]
[348761736,1736775040706,-500.0,0.00010269,2]
[348761737,1736775040717,-602.25,0.00010269,2]
[348761738,1736775040729,-586.93,0.00010269,2]
[348761739,1736775040744,-500.0,0.00010269,2]
[348761740,1736775040754,-1126.3,0.00010269,2]
[348761741,1736775040763,-500.0,0.00010269,2]
[348761742,1736775040773,-3675.88,0.00010269,2]
[348761743,1736775040783,-500.0,0.00010269,2]
[348761744,1736775040792,-500.0,0.00010269,2]
[348761745,1736775040803,-500.0,0.00010269,2]
[348761746,1736775040813,-500.0,0.00010269,2]
[348761747,1736775040823,-500.0,0.00010269,2]
[348761748,1736775040834,-500.0,0.00010269,2]
[348761749,1736775040844,-1000.48,0.00010269,2]
[348761750,1736775040854,-500.0,0.00010269,2]
[348761751,1736775040863,-846.04,0.00010269,2]
[348761752,1736775040873,-1073.02,0.00010269,2]
[348761753,1736775040882,-2090.63,0.00010269,2]
[348761754,1736775040892,-941.86,0.00010269,2]
[348761755,1736775040902,-500.0,0.00010269,2]
[348761756,1736775040911,-500.0,0.00010269,2]
[348761757,1736775040921,-1625.05,0.00010269,2]
[348761758,1736775040933,-500.0,0.00010269,2]
[348761759,1736775040943,-2746.81,0.00010269,2]
[348761760,1736775040953,-999.43,0.00010269,2]
[348761761,1736775040963,-814.0,0.00010269,2]
[348761762,1736775040974,-500.0,0.00010269,2]
[348761763,1736775040984,-944.93,0.00010269,2]
[348761764,1736775040994,-500.0,0.00010269,2]
[348761765,1736775041003,-1308.06,0.00010269,2]
[348761766,1736775041013,-926.15,0.00010269,2]
[348761767,1736775041023,-543.41,0.00010269,2]
[348761768,1736775041033,-1553.1,0.00010269,2]
[348761769,1736775041042,-949.25,0.00010269,2]
[348761771,1736775041052,-727.81,0.00010269,2]
[348761772,1736775041061,-260.238483,0.00010269,2]
[348761773,1736775041071,-684.69,0.00010269,2]
[348761775,1736775041080,-1515.94,0.00010269,2]
[348761777,1736775041088,-911.1,0.00010269,2]
[348761779,1736775041098,-978.45,0.00010269,2]
[348761781,1736775041107,-1156.58,0.00010269,2]
[348761783,1736775041116,-171.942336,0.00010269,2]
[348761785,1736775041125,-500.0,0.00010269,2]
[348761786,1736775041135,-2170.98,0.00010269,2]
[348761788,1736775041144,-1613.15,0.00010269,2]
[348761790,1736775041153,-1520.31,0.00010269,2]
[348761791,1736775041162,-1130.01,0.00010269,2]
[348761792,1736775041172,-3195.42,0.00010269,2]
[348761793,1736775041182,-500.0,0.0001027,2]
[348761794,1736775041192,-500.0,0.0001027,2]
[348761795,1736775041201,-500.0,0.0001027,2]
[348761796,1736775041211,-500.0,0.0001027,2]
[348761797,1736775041220,-500.0,0.0001027,2]
[348761798,1736775041229,-324.94156929,0.0001027,2]
[348761799,1736775041239,-500.0,0.0001027,2]
[348761800,1736775041248,-432.78070053,0.0001027,2]
[348761801,1736775041257,-500.0,0.0001027,2]
[348761802,1736775041266,-335.66198511,0.0001027,2]
[348761803,1736775041275,-500.0,0.0001027,2]
[348761804,1736775041285,-500.0,0.0001027,2]
[348761805,1736775041295,-500.0,0.0001027,2]
[348761806,1736775041304,-500.0,0.0001027,2]
[348761807,1736775041314,-500.0,0.0001027,2]
[348761808,1736775041326,-500.0,0.0001027,2]
[348761809,1736775041338,-501.58621455,0.0001027,2]
[348761810,1736775041354,-448.19279628,0.0001027,2]
[348761811,1736775041363,-500.0,0.0001027,2]
[348761812,1736775041373,-500.0,0.0001027,2]
[348761813,1736775041382,-500.0,0.0001027,2]
[348761814,1736775041392,-500.0,0.0001027,2]
[348761815,1736775041402,-500.0,0.0001027,2]
[348761816,1736775041411,-500.0,0.0001027,2]
[348761817,1736775041421,-551.20152262,0.0001027,2]
[348761818,1736775041436,-500.0,0.0001027,2]
[348761819,1736775041460,-500.0,0.0001027,2]
[348761820,1736775041470,-500.0,0.0001027,2]
[348761821,1736775041479,-500.0,0.0001027,2]
[348761822,1736775041489,-500.0,0.0001027,2]
[348761823,1736775041498,-500.0,0.0001027,2]
[348761824,1736775041507,-500.0,0.0001027,2]
[348761825,1736775041516,-500.0,0.0001027,2]
[348761826,1736775041525,-500.0,0.0001027,2]
[348761827,1736775041534,-500.0,0.0001027,2]
[348761828,1736775041544,-500.0,0.0001027,2]
[348761829,1736775041554,-500.0,0.0001027,2]
[348761830,1736775041563,-500.0,0.0001027,2]
[348761831,1736775041572,-500.0,0.0001027,2]
[348761832,1736775041581,-500.0,0.0001027,2]
[348761833,1736775041591,-500.0,0.0001027,2]
[348761834,1736775041600,-500.0,0.0001027,2]
[348761835,1736775041609,-500.0,0.0001027,2]
[348761836,1736775041619,-500.0,0.0001027,2]
[348761837,1736775041628,-502.94226211,0.0001027,2]
[348761838,1736775041637,-500.0,0.0001027,2]
[348761839,1736775041647,-500.0,0.0001027,2]
[348761840,1736775041656,-500.0,0.0001027,2]
[348761841,1736775041666,-500.0,0.0001027,2]
[348761842,1736775041675,-500.0,0.0001027,2]
[348761843,1736775041690,-500.0,0.0001027,2]
[348761844,1736775041699,-500.0,0.0001027,2]
[348761845,1736775041709,-500.0,0.0001027,2]
[348761846,1736775041718,-500.0,0.0001027,2]
[348761847,1736775041727,-500.0,0.0001027,2]
[348761848,1736775041737,-560.56,0.0001027,2]
[348761849,1736775041749,-500.0,0.0001027,2]
[348761850,1736775041758,-500.0,0.0001027,2]
[348761851,1736775041767,-500.0,0.0001027,2]
[348761852,1736775041778,-500.0,0.0001027,2]
[348761853,1736775041787,-500.0,0.0001027,2]
[348761854,1736775041796,-1208.95,0.0001027,2]
[348761855,1736775041805,-1152.5,0.0001027,2]
[348761856,1736775041815,-500.0,0.0001027,2]
[348761857,1736775041826,-689.38,0.0001027,2]
[348761858,1736775041836,-1575.88,0.0001027,2]
[348761859,1736775041845,-500.0,0.0001027,2]
[348761860,1736775041854,-508.22,0.0001027,2]
[348761861,1736775041863,-500.0,0.0001027,2]
[348761862,1736775041873,-1232.35,0.0001027,2]
[348761863,1736775041882,-500.0,0.0001027,2]
[348761864,1736775041892,-500.0,0.0001027,2]
[348761865,1736775041901,-510.55,0.0001027,2]
[348761866,1736775041910,-500.0,0.0001027,2]
[348761867,1736775041919,-451.71,0.0001027,2]
[348761868,1736775041929,-500.0,0.0001027,2]
[348761869,1736775041942,-500.0,0.0001027,2]
[348761870,1736775041952,-151.88,0.0001027,2]
[348761871,1736775041961,-981.59,0.0001027,2]
[348761872,1736775041970,-387.87859338,0.00010271,2]
[348761873,1736775041979,-587.18,0.00010271,2]
[348761874,1736775041989,-500.0,0.00010271,2]
[348761875,1736775041998,-629.41,0.00010271,2]
[348761876,1736775042007,-500.0,0.00010271,2]
[348761877,1736775042016,-812.95,0.00010271,2]
[348761878,1736775042025,-500.0,0.00010271,2]
[348761879,1736775042035,-1314.06,0.00010271,2]
[348761880,1736775042044,-4803.76,0.00010271,2]
[348761881,1736775042053,-547.41,0.00010271,2]
[348761882,1736775042063,-500.0,0.00010271,2]
[348761883,1736775042072,-500.0,0.00010271,2]
[348761884,1736775042081,-1531.12,0.00010271,2]
[348761885,1736775042091,-500.0,0.00010271,2]
[348761886,1736775042100,-500.0,0.00010271,2]
[348761887,1736775042109,-699.85,0.00010271,2]
[348761888,1736775042118,-941.37,0.00010271,2]
[348761889,1736775042127,-1072.68079755,0.00010271,2]
[348761891,1736775042136,-500.0,0.00010271,2]
[348761892,1736775042145,-500.0,0.00010271,2]
[348761894,1736775042154,-748.41,0.00010271,2]
[348761896,1736775042162,-1633.71,0.00010271,2]
[348761898,1736775042171,-355.18,0.00010272,2]
[348761900,1736775042181,-500.0,0.00010273,2]
[348761902,1736775042192,-500.0,0.00010273,2]
[348761904,1736775042201,-500.0,0.00010273,2]
[348761906,1736775042211,-500.0,0.00010273,2]
[348761908,1736775042221,-500.0,0.00010273,2]
[348761910,1736775042230,-2521.29,0.00010273,2]
[348761912,1736775042239,-500.0,0.00010399,2]
[348761913,1736775042248,-684.69,0.00010399,2]
[348761914,1736775042257,-500.0,0.00010542,2]
[348761915,1736775042266,-500.0,0.00010542,2]
[348761916,1736775042275,-500.0,0.00010542,2]
[348761917,1736775042284,-500.0,0.00010542,2]
[348761918,1736775042293,-500.0,0.00010542,2]
[348761920,1736775042302,-500.0,0.00010542,2]
[348761921,1736775042312,-500.0,0.00010542,2]
[348761923,1736775042321,-183.61596745,0.00010542,2]
[348761924,1736775042331,-500.0,0.00010542,2]
[348761925,1736775042340,-500.0,0.00010542,2]
[348761926,1736775042349,-500.0,0.00010542,2]
[348761928,1736775042358,-500.0,0.00010542,2]
[348761930,1736775042367,-500.0,0.00010542,2]
[348761932,1736775042377,-640.96,0.00010542,2]
[348761935,1736775042386,-500.0,0.00010542,2]
[348761938,1736775042395,-500.0,0.00010542,2]
[348761941,1736775042405,-406.24,0.00010542,2]
[348761945,1736775042414,-574.3,0.00010542,2]
[348761948,1736775042423,-185.73,0.00010542,2]
[348761951,1736775042436,-641.51,0.00010542,2]
[348761954,1736775042445,-500.0,0.00010542,2]
[348761957,1736775042453,-500.0,0.00010542,2]
[348761960,1736775042464,-625.72,0.00010542,2]
[348761963,1736775042473,-333.08,0.00010542,2]
[348761966,1736775042482,-500.0,0.00010542,2]
[348761968,1736775042492,-501.35445546,0.00010542,2]
[348761971,1736775042501,-500.0,0.00010542,2]
[348761974,1736775042510,-617.79,0.00010542,2]
[348761977,1736775042519,-500.0,0.00010542,2]
[348761980,1736775042528,-500.0,0.00010542,2]
[348761982,1736775042537,-170.32,0.00010542,2]
[348761984,1736775042547,-500.0,0.00010542,2]
[348761986,1736775042556,-500.0,0.00010542,2]
[348761988,1736775042565,-500.0,0.00010542,2]
[348761990,1736775042575,-686.43,0.00010542,2]
[348761992,1736775042583,-501.45,0.00010542,2]
[348761994,1736775042592,-500.0,0.00010542,2]
[348761996,1736775042601,-514.11,0.00010542,2]
[348761998,1736775042610,-500.0,0.00010542,2]
[348761999,1736775042619,-500.0,0.00010542,2]
[348762000,1736775042629,-580.94,0.00010542,2]
[348762001,1736775042638,-193.49493176,0.00010542,2]
[348762002,1736775042647,-500.0,0.00010542,2]
[348762003,1736775042656,-500.0,0.00010542,2]
[348762004,1736775042666,-500.0,0.00010542,2]
[348762005,1736775042674,-500.0,0.00010542,2]
[348762006,1736775042687,-606.51,0.00010542,2]
[348762007,1736775042696,-500.0,0.00010542,2]
[348762008,1736775042705,-565.25,0.00010542,2]
[348762009,1736775042714,-500.0,0.00010542,2]
[348762010,1736775042723,-536.63,0.00010542,2]
[348762011,1736775042733,-500.0,0.00010542,2]
[348762012,1736775042743,-2084.23,0.00010542,2]
[348762013,1736775042753,-500.0,0.00010542,2]
[348762014,1736775042762,-500.0,0.00010542,2]
[348762015,1736775042771,-500.0,0.00010542,2]
[348762016,1736775042781,-500.0,0.00010542,2]
[348762017,1736775042790,-1894.88,0.00010542,2]
[348762019,1736775042800,-597.39,0.00010542,2]
[348762020,1736775042809,-510.29,0.00010542,2]
[348762021,1736775042818,-500.0,0.00010542,2]
[348762022,1736775042827,-500.0,0.00010542,2]
[348762023,1736775042837,-500.0,0.00010542,2]
[348762024,1736775042846,-500.0,0.00010542,2]
[348762026,1736775042855,-500.0,0.00010542,2]
[348762029,1736775042864,-500.0,0.00010542,2]
[348762031,1736775042872,-500.0,0.00010542,2]
[348762033,1736775042883,-500.0,0.00010542,2]
[348762035,1736775042892,-500.0,0.00010542,2]
[348762036,1736775042901,-500.0,0.00010542,2]
[348762037,1736775042911,-500.0,0.00010542,2]
[348762038,1736775042920,-500.0,0.00010542,2]
[348762039,1736775042929,-500.0,0.00010542,2]
[348762040,1736775042941,-500.0,0.00010542,2]
[348762041,1736775042950,-500.0,0.00010542,2]
[348762042,1736775042959,-500.0,0.00010542,2]
[348762043,1736775042968,-500.0,0.00010542,2]
[348762044,1736775042978,-500.0,0.00010542,2]
[348762045,1736775042987,-859.77,0.00010542,2]
[348762046,1736775042997,-500.0,0.00010542,2]
[348762047,1736775043006,-500.0,0.00010542,2]
[348762048,1736775043015,-500.0,0.00010542,2]
[348762049,1736775043025,-500.0,0.00010542,2]
[348762050,1736775043034,-500.0,0.00010542,2]
[348762051,1736775043044,-587.62,0.00010542,2]
[348762052,1736775043053,-500.0,0.00010542,2]
[348762053,1736775043062,-500.0,0.00010542,2]
[348762054,1736775043072,-500.0,0.00010542,2]
[348762055,1736775043081,-500.0,0.00010542,2]
[348762056,1736775043090,-500.0,0.00010542,2]
[348762057,1736775043099,-538.03,0.00010542,2]
[348762058,1736775043108,-500.0,0.00010542,2]
[348762059,1736775043117,-231.53843022,0.00010542,2]
[348762060,1736775043126,-500.0,0.00010542,2]
[348762061,1736775043135,-252.07830493,0.00010542,2]
[348762063,1736775043144,-397.47464208,0.00010542,2]
[348762064,1736775043154,-500.0,0.00010542,2]
[348762065,1736775043163,-500.0,0.00010542,2]
[348762066,1736775043173,-500.0,0.00010542,2]
[348762067,1736775043182,-500.0,0.00010542,2]
[348762068,1736775043193,-500.0,0.00010543,2]
[348762069,1736775043202,-500.0,0.00010543,2]
[348762070,1736775043211,-500.0,0.00010543,2]
[348762071,1736775043220,-500.0,0.00010543,2]
[348762072,1736775043230,-500.0,0.00010543,2]
[348762073,1736775043238,-500.0,0.00010543,2]
[348762074,1736775043247,-500.0,0.00010543,2]
[348762075,1736775043257,-500.0,0.00010543,2]
[348762076,1736775043266,-572.68,0.00010543,2]
[348762077,1736775043275,-500.0,0.00010543,2]
[348762078,1736775043284,-500.0,0.00010543,2]
[348762079,1736775043294,-500.0,0.00010543,2]
[348762080,1736775043303,-500.0,0.00010543,2]
[348762081,1736775043311,-500.0,0.00010543,2]
[348762082,1736775043320,-500.0,0.00010543,2]
[348762083,1736775043329,-500.0,0.00010543,2]
[348762084,1736775043338,-500.0,0.00010543,2]
[348762085,1736775043347,-500.0,0.00010543,2]
[348762086,1736775043356,-620.82,0.00010543,2]
[348762087,1736775043365,-536.67,0.00010543,2]
[348762088,1736775043374,-500.0,0.00010543,2]
[348762089,1736775043384,-602.25,0.00010543,2]
[348762090,1736775043394,-586.93,0.00010543,2]
[348762091,1736775043403,-500.0,0.00010543,2]
[348762092,1736775043413,-1126.3,0.00010543,2]
[348762093,1736775043422,-500.0,0.00010543,2]
[348762094,1736775043431,-3675.88,0.00010543,2]
[348762095,1736775043443,-500.0,0.00010543,2]
[348762096,1736775043453,-500.0,0.00010543,2]
[348762097,1736775043462,-500.0,0.00010543,2]
[348762098,1736775043471,-500.0,0.00010543,2]
[348762099,1736775043481,-1000.48,0.00010543,2]
[348762100,1736775043490,-846.04,0.00010543,2]
[348762101,1736775043679,-1073.02,0.00010543,2]
[348762102,1736775043692,-2090.63,0.00010543,2]
[348762103,1736775043702,-941.86,0.00010543,2]
[348762104,1736775043712,-500.0,0.00010543,2]
[348762105,1736775043721,-432.06,0.00010543,2]
[348762106,1736775043731,-1625.05,0.00010543,2]
[348762107,1736775043743,-500.0,0.00010543,2]
[348762108,1736775043752,-2746.81,0.00010543,2]
[348762109,1736775043762,-999.43,0.00010543,2]
[348762110,1736775043771,-814.0,0.00010543,2]
[348762111,1736775043781,-500.0,0.00010543,2]
[348762112,1736775043790,-500.0,0.00010543,2]
[348762113,1736775043800,-944.93,0.00010543,2]
[348762114,1736775043809,-1308.06,0.00010543,2]
[348762115,1736775043820,-926.15,0.00010543,2]
[348762116,1736775043829,-543.41,0.00010543,2]
[348762117,1736775043839,-1553.1,0.00010543,2]
[348762118,1736775043848,-949.25,0.00010543,2]
[348762119,1736775043858,-727.81,0.00010543,2]
[348762120,1736775043867,-260.238483,0.00010543,2]
[348762121,1736775043876,-684.69,0.00010543,2]
[348762122,1736775043885,-1515.94,0.00010543,2]
[348762123,1736775043895,-911.1,0.00010543,2]
[348762124,1736775043904,-978.45,0.00010543,2]
[348762125,1736775043914,-1156.58,0.00010543,2]
[348762126,1736775043923,-171.942336,0.00010543,2]
[348762127,1736775043934,-500.0,0.00010543,2]
[348762128,1736775043943,-2170.98,0.00010543,2]
[348762129,1736775043952,-1613.15,0.00010543,2]
[348762130,1736775043961,-1520.31,0.00010543,2]
[348762131,1736775043971,-1130.01,0.00010543,2]
[348762132,1736775043980,-3195.42,0.00010543,2]
[348762133,1736775043990,-500.0,0.00010544,2]
[348762134,1736775043999,-500.0,0.00010544,2]
[348762135,1736775044008,-500.0,0.00010544,2]
[348762136,1736775044018,-500.0,0.00010544,2]
[348762137,1736775044027,-500.0,0.00010544,2]